fUST/lending_fUST_20260427
["ID","MTS","AMOUNT","RATE_DAILY","PERIOD"]
[421186420,1777224647254,-500.0,0.00019178,2]
[421186421,1777224647264,-513.54464002,0.00019178,2]
[421186422,1777224647274,-500.0,0.00019178,2]
[421186423,1777224647284,-561.67,0.00019178,2]
[421186424,1777224647293,-1213.64,0.00019178,2]
[421186425,1777224647303,-500.0,0.00019178,2]
[421186426,1777224647313,-4570.47,0.00019178,2]
[421186427,1777224647323,-519.22279762,0.00019178,2]
[421186428,1777224647333,-500.0,0.00019178,2]
[421186429,1777224647343,-500.0,0.00019178,2]
[421186430,1777224647354,-331.0850796,0.00019178,2]
[421186431,1777224647363,-632.39,0.00019178,2]
[421186432,1777224647373,-500.0,0.00019178,2]
[421186433,1777224647383,-3068.36,0.00019178,2]
[421186434,1777224647392,-500.0,0.00019178,2]
[421186435,1777224647403,-1563.44,0.00019178,2]
[421186436,1777224647412,-500.0,0.00019178,2]
[421186437,1777224647423,-500.0,0.00019178,2]
[421186438,1777224647623,-731.71,0.00019178,2]
[421186439,1777224647675,-500.0,0.00019178,2]
[421186440,1777224647685,-543.82673814,0.00019178,2]
[421186441,1777224647694,-511.7559416,0.00019178,2]
[421186442,1777224647704,-421.36587003,0.00019178,2]
[421186443,1777224647714,-3873.25,0.00019178,2]
[421186444,1777224647723,-2039.01,0.00019178,2]
[421186445,1777224647733,-308.72536128,0.00019178,2]
[421186446,1777224647742,-788.07,0.00019178,2]
[421186447,1777224647751,-500.0,0.00019178,2]
[421186448,1777224647761,-2194.2,0.00019178,2]
[421186449,1777224647770,-806.28,0.00019178,2]
[421186450,1777224647780,-522.32131418,0.00019178,2]
[421186451,1777224647790,-500.0,0.00019178,2]
[421186452,1777224647800,-500.0,0.00019178,2]
[421186453,1777224647810,-509.26464952,0.00019178,2]
[421186454,1777224647820,-500.0,0.00019178,2]
[421186455,1777224647830,-500.0,0.00019178,2]
[421186456,1777224647840,-1489.65,0.00019178,2]
[421186457,1777224647850,-1733.87,0.00019178,2]
[421186458,1777224647859,-522.76227071,0.00019178,2]
[421186459,1777224647869,-500.0,0.00019178,2]
[421186460,1777224647878,-9936.19,0.00019178,2]
[421186461,1777224647888,-3444.1,0.00019178,2]
[421186462,1777224647898,-500.0,0.00019178,2]
[421186463,1777224647907,-1640.17,0.00019178,2]
[421186464,1777224647917,-5387.36,0.00019178,2]
[421186465,1777224647927,-500.0,0.00019178,2]
[421186466,1777224647936,-500.0,0.00019178,2]
[421186467,1777224647946,-530.39901254,0.00019178,2]
[421186468,1777224647956,-500.0,0.00019178,2]
[421186469,1777224647966,-2365.54,0.00019178,2]
[421186470,1777224647976,-319.26,0.00019178,2]
[421186471,1777224647985,-286.79744108,0.00019178,2]
[421186472,1777224647995,-151.0,0.00019178,2]
[421186473,1777224648006,-294.467736,0.00019178,2]
[421186474,1777224648015,-500.0,0.00019178,2]
[421186475,1777224648025,-500.0,0.00019178,2]
[421186476,1777224648035,-442.1,0.00019178,5]
[421186477,1777224648045,-1039.27,0.00019178,2]
[421186478,1777224648054,-584.12,0.00019178,2]
[421186479,1777224648063,-8089.08,0.00019178,2]
[421186480,1777224648073,-500.0,0.00019178,2]
[421186481,1777224648082,-500.0,0.00019178,2]
[421186482,1777224648091,-12172.81,0.00019178,2]
[421186483,1777224648100,-500.0,0.00019178,2]
[421186484,1777224648110,-500.0,0.00019178,2]
[421186485,1777224648120,-500.0,0.00019178,2]
[421186486,1777224648130,-500.0,0.00019178,2]
[421186487,1777224648139,-2152.24,0.00019178,2]
[421186488,1777224648149,-500.0,0.00019178,2]
[421186489,1777224648158,-590.89134263,0.00019178,2]
[421186490,1777224648168,-151.0,0.00019178,2]
[421186491,1777224648180,-500.0,0.00019178,2]
[421186492,1777224648189,-212.961026,0.00019178,2]
[421186493,1777224648199,-500.0,0.00019178,2]
[421186494,1777224648209,-1884.58,0.00019178,2]
[421186495,1777224648218,-500.0,0.00019178,2]
[421186496,1777224648228,-500.0,0.00019178,2]
[421186497,1777224648238,-500.0,0.00019178,2]
[421186498,1777224648247,-500.0,0.00019178,2]
[421186499,1777224648257,-529.56556951,0.00019178,2]
[421186500,1777224648266,-500.63032787,0.00019178,2]
[421186501,1777224648276,-3686.99,0.00019178,2]
[421186502,1777224648285,-500.0,0.00019178,2]
[421186503,1777224648295,-1969.91,0.00019178,2]
[421186504,1777224648305,-12073.84,0.00019178,2]
[421186505,1777224648315,-500.0,0.00019178,2]
[421186506,1777224648325,-712.54,0.00019178,2]
[421186507,1777224648335,-500.0,0.00019178,2]
[421186508,1777224648345,-241.66330997,0.00019178,2]
[421186509,1777224648354,-500.0,0.00019178,2]
[421186510,1777224648363,-620.39,0.00019178,2]
[421186511,1777224648373,-500.0,0.00019178,2]
[421186512,1777224648383,-500.0,0.00019178,2]
[421186513,1777224648392,-500.0,0.00019178,2]
[421186514,1777224648402,-500.0,0.00019178,2]
[421186515,1777224648411,-467.4436053,0.00019178,2]
[421186516,1777224648421,-7940.72,0.00019178,2]
[421186517,1777224648430,-930.58,0.00019178,2]
[421186518,1777224648440,-500.0,0.00019178,2]
[421186519,1777224648450,-500.0,0.00019178,2]
[421186520,1777224648459,-500.0,0.00019178,2]
[421186521,1777224648468,-850.45,0.00019178,2]
[421186522,1777224648479,-534.60200084,0.00019178,2]
[421186523,1777224648488,-500.0,0.00019178,2]
[421186524,1777224648497,-7233.65,0.00019178,2]
[421186525,1777224648507,-516.62878869,0.00019178,2]
[421186526,1777224648518,-2802.04,0.00019178,2]
[421186527,1777224648528,-701.03,0.00019178,2]
[421186528,1777224648538,-151.0,0.00019178,2]
[421186529,1777224648548,-810.97,0.00019178,2]
[421186530,1777224648558,-151.0,0.00019178,2]
[421186531,1777224648568,-500.0,0.00019178,2]
[421186532,1777224648578,-151.0,0.00019178,2]
[421186533,1777224648589,-151.0,0.00019178,2]
[421186534,1777224648598,-151.0,0.00019178,2]
[421186535,1777224648608,-151.0,0.00019178,2]
[421186536,1777224648617,-151.0,0.00019178,2]
[421186537,1777224648627,-151.0,0.00019178,2]
[421186538,1777224648636,-151.0,0.00019178,2]
[421186539,1777224648646,-151.0,0.00019178,2]
[421186540,1777224648655,-151.0,0.00019178,2]
[421186541,1777224648665,-307.19733352,0.00019178,2]
[421186542,1777224648681,-270.208441,0.00019178,2]
[421186543,1777224648697,-2268.55,0.00019178,2]
[421186544,1777224648708,-676.5,0.00019178,2]
[421186545,1777224648718,-516.61702328,0.00019178,2]
[421186546,1777224648729,-500.0,0.00019178,2]
[421186547,1777224648739,-500.0,0.00019178,2]
[421186548,1777224648750,-591.61785303,0.00019178,2]
[421186549,1777224648761,-500.0,0.00019178,2]
[421186550,1777224648771,-8371.02,0.00019178,2]
[421186551,1777224648782,-1844.52,0.00019178,2]
[421186552,1777224648792,-6195.16,0.00019178,2]
[421186553,1777224648802,-554.39143483,0.00019178,2]
[421186554,1777224648812,-401.73637053,0.00019178,2]
[421186555,1777224648823,-500.0,0.00019178,2]
[421186556,1777224648834,-2654.56,0.00019178,2]
[421186557,1777224648844,-1310.88,0.00019178,2]
[421186558,1777224648854,-500.0,0.00019178,2]
[421186559,1777224648865,-500.0,0.00019178,2]
[421186560,1777224648875,-500.0,0.00019178,2]
[421186561,1777224648885,-308.62902243,0.00019178,2]
[421186562,1777224648895,-500.0,0.00019178,2]
[421186563,1777224648905,-500.0,0.00019178,2]
[421186564,1777224648915,-409.29991714,0.00019178,2]
[421186565,1777224648925,-500.0,0.00019178,2]
[421186566,1777224648935,-500.0,0.00019178,2]
[421186567,1777224648945,-15718.57,0.00019178,2]
[421186568,1777224648955,-500.0,0.00019178,2]
[421186569,1777224648965,-571.51,0.00019178,2]
[421186570,1777224648975,-519.80921646,0.00019178,2]
[421186571,1777224648985,-518.6441453,0.00019178,2]
[421186572,1777224648995,-3967.31,0.00019178,2]
[421186573,1777224649005,-169.02589712,0.00019178,2]
[421186574,1777224649014,-1027.14,0.00019178,2]
[421186575,1777224649024,-500.0,0.00019178,2]
[421186576,1777224649034,-1197.97,0.00019178,2]
[421186577,1777224649044,-500.0,0.00019178,2]
[421186578,1777224649055,-4393.29,0.00019178,2]
[421186579,1777224649065,-500.0,0.00019178,2]
[421186580,1777224649075,-1847.76,0.00019178,2]
[421186581,1777224649084,-500.0,0.00019178,2]
[421186582,1777224649094,-2923.71,0.00019178,2]
[421186583,1777224649104,-1258.86,0.00019178,2]
[421186584,1777224649114,-3844.37,0.00019178,2]
[421186585,1777224649123,-500.0,0.00019178,2]
[421186586,1777224649134,-500.0,0.00019178,2]
[421186587,1777224649143,-1561.58,0.00019178,2]
[421186588,1777224649153,-500.0,0.00019178,2]
[421186589,1777224649163,-500.0,0.00019178,2]
[421186590,1777224649172,-294.04003365,0.00019178,2]
[421186591,1777224649183,-500.0,0.00019178,2]
[421186592,1777224649193,-1000.0,0.00019178,2]
[421186593,1777224649203,-500.0,0.00019178,2]
[421186594,1777224649213,-500.0,0.00019178,2]
[421186595,1777224649223,-1000.0,0.00019178,2]
[421186596,1777224649232,-2268.75,0.00019178,2]
[421186597,1777224649242,-1000.0,0.00019178,2]
[421186598,1777224649252,-522.99251709,0.00019178,2]
[421186599,1777224649262,-1000.0,0.00019178,2]
[421186600,1777224649272,-500.0,0.00019178,2]
[421186601,1777224649282,-500.0,0.00019178,2]
[421186602,1777224649291,-500.0,0.00019178,2]
[421186603,1777224649303,-1004.87982192,0.00019178,2]
[421186604,1777224649313,-1167.4,0.00019178,2]
[421186605,1777224649323,-500.0,0.00019178,2]
[421186606,1777224649334,-500.0,0.00019178,2]
[421186607,1777224649344,-3050.2,0.00019178,2]
[421186608,1777224649353,-500.0,0.00019178,2]
[421186609,1777224649363,-500.0,0.00019178,2]
[421186610,1777224649373,-500.0,0.00019178,2]
[421186611,1777224649383,-2609.42,0.00019178,2]
[421186612,1777224649393,-500.0,0.00019178,2]
[421186613,1777224649403,-3833.86,0.00019178,2]
[421186614,1777224649413,-509.34395141,0.00019178,2]
[421186615,1777224649423,-500.0,0.00019178,2]
[421186616,1777224649433,-1149.02,0.00019178,2]
[421186617,1777224649443,-534.3387154,0.00019178,2]
[421186618,1777224649453,-500.0,0.00019178,2]
[421186619,1777224649463,-50259.9,0.00019178,2]
[421186620,1777224649473,-7753.01,0.00019178,2]
[421186621,1777224649484,-562.48,0.00019178,2]
[421186622,1777224649494,-500.0,0.00019178,2]
[421186623,1777224649505,-500.0,0.00019178,2]
[421186624,1777224649519,-500.0,0.00019178,2]
[421186625,1777224649530,-510.64214342,0.00019178,2]
[421186626,1777224649540,-1725.81,0.00019178,2]
[421186627,1777224649551,-500.0,0.00019178,2]
[421186628,1777224649561,-151.75281671,0.00019178,2]
[421186629,1777224649571,-500.0,0.00019178,2]
[421186630,1777224649582,-500.0,0.00019178,2]
[421186631,1777224649592,-500.0,0.00019178,2]
[421186632,1777224649602,-500.0,0.00019178,2]
[421186633,1777224649613,-2627.98,0.00019178,2]
[421186634,1777224649623,-500.0,0.00019178,2]
[421186635,1777224649633,-2474.5,0.00019178,2]
[421186636,1777224649646,-17032.67,0.00019178,2]
[421186637,1777224649656,-2457.58,0.00019178,2]
[421186638,1777224649666,-500.0,0.00019178,2]
[421186639,1777224649676,-500.0,0.00019178,2]
[421186640,1777224649686,-11692.49,0.00019178,2]
[421186641,1777224649696,-500.0,0.00019178,2]
[421186642,1777224649706,-500.0,0.00019178,2]
[421186643,1777224649716,-500.0,0.00019178,2]
[421186644,1777224649726,-2837.25,0.00019178,2]
[421186645,1777224649736,-1226.76,0.00019178,2]
[421186646,1777224649746,-602.93687556,0.00019178,2]
[421186647,1777224649756,-516.38013719,0.00019178,2]
[421186648,1777224649766,-500.0,0.00019178,2]
[421186649,1777224649776,-500.0,0.00019178,2]
[421186650,1777224649786,-1515.9,0.00019178,2]
[421186651,1777224649796,-180.76115807,0.00019178,2]
[421186652,1777224649806,-3949.6,0.00019178,2]
[421186653,1777224649816,-500.0,0.00019178,2]
[421186654,1777224649826,-500.0,0.00019178,2]
[421186655,1777224649836,-17056.71,0.00019178,2]
[421186656,1777224649846,-500.0,0.00019178,2]
[421186657,1777224649856,-500.0,0.00019178,2]
[421186658,1777224649866,-500.0,0.00019178,2]
[421186659,1777224649876,-553.12,0.00019178,2]
[421186660,1777224649886,-2510.42,0.00019178,2]
[421186661,1777224649896,-500.0,0.00019178,2]
[421186662,1777224649906,-500.0,0.00019178,2]
[421186663,1777224649916,-500.0,0.00019178,2]
[421186664,1777224649925,-151.0,0.00019178,2]
[421186665,1777224649935,-696.78,0.00019178,2]
[421186666,1777224649945,-421.53122713,0.00019178,2]
[421186667,1777224649955,-151.0,0.00019178,2]
[421186668,1777224649964,-151.0,0.00019178,2]
[421186669,1777224649974,-500.0,0.00019178,2]
[421186670,1777224649984,-151.0,0.00019178,2]
[421186671,1777224649994,-541.75212547,0.00019178,2]
[421186672,1777224650004,-501.35,0.00019178,2]
[421186673,1777224650013,-151.0,0.00019178,2]
[421186674,1777224650023,-6392.56,0.00019178,2]
[421186675,1777224650133,-500.0,0.00019178,2]
[421186676,1777224650142,-151.0,0.00019178,2]
[421186677,1777224650154,-500.0,0.00019178,2]
[421186678,1777224650163,-154.06804484,0.00019178,2]
[421186679,1777224650172,-1145.14,0.00019178,2]
[421186680,1777224650182,-500.0,0.00019178,2]
[421186681,1777224650191,-500.0,0.00019178,2]
[421186682,1777224650200,-508.23983602,0.00019178,2]
[421186683,1777224650210,-500.0,0.00019178,2]
[421186684,1777224650219,-2938.65,0.00019178,2]
[421186685,1777224650229,-722.69,0.00019178,2]
[421186686,1777224650239,-500.0,0.00019178,2]
[421186687,1777224650248,-18209.07,0.00019178,2]
[421186688,1777224650257,-518.99594989,0.00019178,2]
[421186689,1777224650267,-207.77063269,0.00019178,2]
[421186690,1777224650276,-500.0,0.00019178,2]
[421186691,1777224650286,-5551.1,0.00019178,2]
[421186692,1777224650295,-17341.74,0.00019178,2]
[421186693,1777224650304,-1282.0,0.00019178,2]
[421186694,1777224650314,-151.0,0.00019178,2]
[421186695,1777224650323,-151.0,0.00019178,2]
[421186696,1777224650332,-151.0,0.00019178,2]
[421186697,1777224650342,-151.0,0.00019178,2]
[421186698,1777224650351,-151.0,0.00019178,2]
[421186699,1777224650360,-151.0,0.00019178,2]
[421186700,1777224650370,-151.0,0.00019178,2]
[421186701,1777224650379,-151.0,0.00019178,2]
[421186702,1777224650388,-151.0,0.00019178,2]
[421186703,1777224650398,-151.0,0.00019178,2]
[421186704,1777224650407,-151.0,0.00019178,2]
[421186705,1777224650416,-151.0,0.00019178,2]
[421186706,1777224650425,-188.0,0.00019178,2]
[421186707,1777224650435,-1785.97937,0.00019178,2]
[421186708,1777224650444,-1785.97937,0.00019178,2]
[421186709,1777224650454,-1785.97937,0.00019178,2]
[421186710,1777224650463,-1785.97937,0.00019178,2]
[421186711,1777224650473,-1785.97937,0.00019178,2]
[421186712,1777224650482,-1785.97937,0.00019178,2]
[421186713,1777224650491,-1785.97937,0.00019178,2]
[421186714,1777224650500,-1785.97937,0.00019178,2]
[421186715,1777224650510,-1785.97937,0.00019178,2]
[421186716,1777224650519,-1785.97937,0.00019178,2]
[421186717,1777224650530,-1785.97937,0.00019178,2]
[421186718,1777224650539,-1785.97937,0.00019178,2]
[421186719,1777224650549,-1785.97937,0.00019178,2]
[421186720,1777224650559,-1785.97937,0.00019178,2]
[421186721,1777224650568,-1785.97937,0.00019178,2]
[421186722,1777224650578,-1785.97937,0.00019178,2]
[421186723,1777224650587,-1785.97937,0.00019178,2]
[421186724,1777224650596,-1785.97937,0.00019178,2]
[421186725,1777224650606,-1785.97937,0.00019178,2]
[421186726,1777224650615,-1785.979361,0.00019178,2]
[421186727,1777224650625,-232.3581236,0.00019189,2]
[421186728,1777224650634,-151.0,0.000192,2]
[421186729,1777224650644,-151.0,0.000192,2]
[421186730,1777224650654,-923.6163236,0.00019291,2]
[421186731,1777224650663,-151.0,0.000193,2]
[421186732,1777224650673,-151.0,0.000193,2]
[421186733,1777224650682,-7216.23995707,0.00019352,2]
[421186734,1777224650691,-215.0,0.0001936,2]
[421186735,1777224650701,-151.0,0.000194,2]
[421186736,1777224650710,-151.0,0.000194,2]
[421186737,1777224650720,-2312.83697232,0.00019401,2]
[421186738,1777224650730,-150.0,0.00019432,2]
[421186739,1777224650739,-616.1629,0.00019452,2]
[421186740,1777224650749,-1439.0982,0.00019452,2]
[421186741,1777224650758,-191.772719,0.00019452,2]
[421186742,1777224650768,-736.13917,0.00019452,2]
[421186743,1777224650777,-958.863597,0.00019452,2]
[421186744,1777224650787,-187.3,0.00019452,2]
[421186745,1777224650796,-45.78692887,0.00019452,2]
[421186746,1777224651076,-454.26520693,0.00019452,2]
[421186747,1777224651086,-500.0,0.00019452,2]
[421186748,1777224651095,-500.0,0.00019452,2]
[421186749,1777224651105,-526.19056011,0.00019452,2]
[421186750,1777224651114,-500.0,0.00019452,2]
[421186751,1777224651124,-500.0,0.00019452,2]
[421186752,1777224651134,-744.28,0.00019452,2]
[421186753,1777224651143,-500.0,0.00019452,2]
[421186754,1777224651152,-500.0,0.00019452,2]
[421186755,1777224651162,-500.0,0.00019452,2]
[421186756,1777224651172,-538.89739631,0.00019452,2]
[421186757,1777224651181,-500.0,0.00019452,2]
[421186758,1777224651190,-384.92727988,0.00019452,2]
[421186759,1777224651199,-500.0,0.00019452,2]
[421186760,1777224651209,-500.0,0.00019452,2]
[421186761,1777224651218,-500.0,0.00019452,2]
[421186762,1777224651227,-500.0,0.00019452,2]
[421186763,1777224651236,-500.0,0.00019452,2]
[421186764,1777224651245,-612.14542462,0.00019452,2]
[421186765,1777224651259,-1265.97,0.00019452,2]
[421186766,1777224651268,-548.47,0.00019452,2]
[421186767,1777224651277,-500.0,0.00019452,2]
[421186768,1777224651286,-500.0,0.00019452,2]
[421186769,1777224651296,-338.6447351,0.00019452,2]
[421186770,1777224651311,-198.14099838,0.00019452,2]
[421186771,1777224651320,-1843.88,0.00019452,2]
[421186772,1777224651330,-401.81699159,0.00019452,2]
[421186773,1777224651341,-98.18300841,0.00019452,2]
[421186774,1777224651350,-500.0,0.00019452,2]
[421186775,1777224651360,-500.0,0.00019452,2]
[421186776,1777224651370,-330.05699159,0.00019452,2]
[421186777,1777224651393,-169.94300841,0.00019452,2]
[421186778,1777224651402,-500.0,0.00019452,2]
[421186779,1777224651411,-1642.88,0.00019452,2]
[421186780,1777224651420,-500.0,0.00019452,2]
[421186781,1777224651430,-500.0,0.00019452,2]
[421186782,1777224651440,-2440.24,0.00019452,2]
[421186783,1777224651450,-500.0,0.00019452,2]
[421186784,1777224651460,-1770.64,0.00019452,2]
[421186785,1777224651470,-500.0,0.00019452,2]
[421186786,1777224651479,-500.0,0.00019452,2]
[421186787,1777224651488,-776.32,0.00019452,2]
[421186788,1777224651498,-359.4515845,0.00019452,2]
[421186789,1777224651507,-567.87,0.00019452,2]
[421186790,1777224651517,-500.0,0.00019452,2]
[421186791,1777224651529,-542.41290801,0.00019452,2]
[421186792,1777224651538,-500.0,0.00019452,2]
[421186793,1777224651547,-520.11587334,0.00019452,2]
[421186794,1777224651557,-500.0,0.00019452,2]
[421186795,1777224651567,-450.87611712,0.00019452,2]
[421186796,1777224651577,-541.92578451,0.00019452,2]
[421186797,1777224651587,-546.92128678,0.00019452,2]
[421186798,1777224651597,-541.32,0.00019452,2]
[421186799,1777224651606,-500.0,0.00019452,2]
[421186800,1777224651616,-500.0,0.00019452,2]
[421186801,1777224651625,-500.0,0.00019452,2]
[421186802,1777224651635,-500.0,0.00019452,2]
[421186803,1777224651644,-500.0,0.00019452,2]
[421186804,1777224651653,-1376.88,0.00019452,2]
[421186805,1777224651663,-500.0,0.00019452,2]
[421186806,1777224651673,-500.0,0.00019452,2]
[421186807,1777224651683,-500.0,0.00019452,2]
[421186808,1777224651693,-25911.505281,0.00019452,2]
[421186809,1777224651702,-500.0,0.00019452,2]
[421186810,1777224651712,-612.91086013,0.00019452,2]
[421186811,1777224651721,-516.08,0.00019452,2]
[421186812,1777224651730,-2305.68,0.00019452,2]
[421186813,1777224651740,-500.0,0.00019452,2]
[421186814,1777224651750,-500.0,0.00019452,2]
[421186815,1777224651759,-1025.03,0.00019452,2]
[421186816,1777224651769,-500.0,0.00019452,2]
[421186817,1777224651780,-500.0,0.00019452,2]
[421186818,1777224651790,-500.0,0.00019452,2]
[421186819,1777224651800,-500.0,0.00019452,2]
[421186820,1777224651809,-500.0,0.00019452,2]
[421186821,1777224651819,-500.0,0.00019452,2]
[421186822,1777224651828,-433.56722912,0.00019452,2]
[421186823,1777224651838,-327.85586471,0.00019452,2]
[421186824,1777224651847,-500.0,0.00019452,2]
[421186825,1777224651856,-152.49,0.00019452,2]
[421186826,1777224651865,-500.0,0.00019452,2]
[421186827,1777224651874,-500.0,0.00019452,2]
[421186828,1777224651883,-500.0,0.00019452,2]
[421186829,1777224651892,-727.72,0.00019452,2]
[421186830,1777224651901,-500.0,0.00019452,2]
[421186831,1777224651910,-741.69,0.00019452,2]
[421186832,1777224651920,-1014.14,0.00019452,2]
[421186833,1777224651929,-500.0,0.00019452,2]
[421186834,1777224651940,-500.0,0.00019452,2]
[421186835,1777224651949,-1241.41,0.00019452,2]
[421186836,1777224651958,-500.0,0.00019452,2]
[421186837,1777224651968,-513.88609557,0.00019452,2]
[421186838,1777224651977,-500.0,0.00019452,2]
[421186839,1777224651986,-500.0,0.00019452,2]
[421186840,1777224651995,-1144.41,0.00019452,2]
[421186841,1777224652004,-524.38142996,0.00019452,2]
[421186842,1777224652013,-757.57,0.00019452,2]
[421186843,1777224652022,-500.0,0.00019452,2]
[421186844,1777224652031,-500.0,0.00019452,2]
[421186845,1777224652041,-500.0,0.00019452,2]
[421186846,1777224652051,-500.0,0.00019452,2]
[421186847,1777224652061,-883.15,0.00019452,2]
[421186848,1777224652071,-500.0,0.00019452,2]
[421186849,1777224652082,-500.0,0.00019452,2]
[421186850,1777224652092,-545.60255127,0.00019452,2]
[421186851,1777224652102,-1785.21,0.00019452,2]
[421186852,1777224652113,-3763.08,0.00019452,2]
[421186853,1777224652123,-1000.0,0.00019452,2]
[421186854,1777224652134,-500.0,0.00019452,2]
[421186855,1777224652145,-500.0,0.00019452,2]
[421186856,1777224652154,-500.0,0.00019452,2]
[421186857,1777224652165,-500.0,0.00019452,2]
[421186858,1777224652174,-500.0,0.00019452,2]
[421186859,1777224652184,-500.0,0.00019452,2]
[421186860,1777224652194,-618.79,0.00019452,2]
[421186861,1777224652203,-500.0,0.00019452,2]
[421186862,1777224652213,-500.0,0.00019452,2]
[421186863,1777224652223,-500.0,0.00019452,2]
[421186864,1777224652233,-500.0,0.00019452,2]
[421186865,1777224652243,-500.0,0.00019452,2]
[421186866,1777224652253,-983.14,0.00019452,2]
[421186867,1777224652263,-500.0,0.00019452,2]
[421186868,1777224652272,-500.0,0.00019452,2]
[421186869,1777224652283,-500.0,0.00019452,2]
[421186870,1777224652293,-500.0,0.00019452,2]
[421186871,1777224652302,-500.0,0.00019452,2]
[421186872,1777224652312,-500.0,0.00019452,2]
[421186873,1777224652322,-500.0,0.00019452,2]
[421186874,1777224652332,-500.0,0.00019452,2]
[421186875,1777224652341,-536.91,0.00019452,2]
[421186876,1777224652351,-500.0,0.00019452,2]
[421186877,1777224652361,-1263.92,0.00019452,2]
[421186878,1777224652372,-379.37186809,0.00019452,2]
[421186879,1777224652382,-2844.98,0.00019452,2]
[421186880,1777224652392,-350.59476996,0.00019452,2]
[421186881,1777224652402,-515.22190895,0.00019452,2]
[421186882,1777224652412,-500.0,0.00019452,2]
[421186883,1777224652422,-500.0,0.00019452,2]
[421186884,1777224652434,-500.0,0.00019452,2]
[421186885,1777224652444,-537.84708062,0.00019452,2]
[421186886,1777224652454,-510.1,0.00019452,2]
[421186887,1777224652465,-529.14442192,0.00019452,2]
[421186888,1777224652475,-500.0,0.00019452,2]
[421186889,1777224652485,-500.0,0.00019452,2]
[421186890,1777224652495,-383.03387809,0.00019452,2]
[421186891,1777224652505,-500.0,0.00019452,2]
[421186892,1777224652515,-500.0,0.00019452,2]
[421186893,1777224652526,-716.62,0.00019452,2]
[421186894,1777224652535,-660.94,0.00019452,2]
[421186895,1777224652545,-500.0,0.00019452,2]
[421186896,1777224652555,-500.0,0.00019452,2]
[421186897,1777224652566,-1320.04,0.00019452,2]
[421186898,1777224652577,-500.0,0.00019452,2]
[421186899,1777224652589,-407.3685533,0.00019452,2]
[421186900,1777224652599,-500.0,0.00019452,2]
[421186901,1777224652609,-500.0,0.00019452,2]
[421186902,1777224652619,-513.8347944,0.00019452,2]
[421186903,1777224652630,-500.0,0.00019452,2]
[421186904,1777224652640,-500.0,0.00019452,2]
[421186905,1777224652650,-1730.64,0.00019452,2]
[421186906,1777224652661,-500.0,0.00019452,2]
[421186907,1777224652672,-500.0,0.00019452,2]
[421186908,1777224652682,-500.0,0.00019452,2]
[421186909,1777224652691,-1011.24,0.00019452,2]
[421186910,1777224652701,-598.52653458,0.00019452,2]
[421186911,1777224652712,-500.0,0.00019452,2]
[421186912,1777224652722,-500.0,0.00019452,2]
[421186913,1777224652732,-500.0,0.00019452,2]
[421186914,1777224652742,-1157.05,0.00019452,2]
[421186915,1777224652753,-500.0,0.00019452,2]
[421186916,1777224652763,-500.0,0.00019452,2]
[421186917,1777224652774,-500.0,0.00019452,2]
[421186918,1777224652784,-1486.83,0.00019452,2]
[421186919,1777224652795,-500.0,0.00019452,2]